fUSD/lending_fUSD_20240801
["ID","MTS","AMOUNT","RATE_DAILY","PERIOD"]
[333828840,1722535836347,-500.0,0.00012793,2]
[333828841,1722535836362,-2888.2091,0.00012799,2]
[333828842,1722535836376,-170.81662991,0.00012799,2]
[333828843,1722535836390,-300.0,0.000128,4]
[333828844,1722535836404,-1006.0,0.000128,2]
[333828845,1722535836418,-500.0,0.00012802,2]
[333828846,1722535836432,-346.67846722,0.00012803,2]
[333828847,1722535836446,-500.0,0.00012811,2]
[333828848,1722535836459,-236.10516886,0.00012818,2]
[333828849,1722535836473,-500.0,0.0001282,2]
[333828850,1722535836487,-500.0,0.00012829,2]
[333828851,1722535836501,-500.0,0.00012837,2]
[333828852,1722535836514,-500.0,0.00012846,2]
[333828853,1722535836527,-500.0,0.00012855,2]
[333828854,1722535836541,-800.0,0.00012862,2]
[333828855,1722535836555,-500.0,0.00012864,2]
[333828856,1722535836569,-3000.0,0.0001287,2]
[333828857,1722535836583,-500.0,0.00012873,2]
[333828858,1722535836596,-500.0,0.00012881,2]
[333828859,1722535836609,-500.0,0.0001289,2]
[333828860,1722535836623,-500.0,0.00012895,2]
[333828861,1722535836637,-500.0,0.00012896,2]
[333828862,1722535836651,-200.0,0.00012896,2]
[333828863,1722535836666,-500.0,0.00012899,2]
[333828864,1722535836680,-537.14137495,0.00012899,2]
[333828865,1722535836694,-176.76776976,0.000129,2]
[333828866,1722535836708,-395.80581552,0.000129,2]
[333828867,1722535836723,-346.67846722,0.000129,2]
[333828868,1722535836738,-300.0,0.000129,4]
[333828869,1722535836753,-1000.0,0.000129,2]
[333828870,1722535836769,-33016.0,0.00012918,2]
[333828871,1722535836783,-174.68,0.0001299,2]
[333828872,1722535836798,-129366.87500913,0.00012997,2]
[333828879,1722535839457,-609.86344662,0.00012997,2]
[333828898,1722535840463,-1404.6505661,0.00011186,2]
[333828900,1722535840474,-1296.95622263,0.00011324,2]
[333828902,1722535840487,-155.0,0.00011506,2]
[333828903,1722535840500,-188.60979296,0.00011896,2]
[333828905,1722535840510,-206.56189729,0.00011896,2]
[333828907,1722535840519,-155.0,0.00012696,2]
[333828909,1722535840530,-1050.76152102,0.00012997,2]
[333828911,1722535840543,-4015.21049999,0.00012997,2]
[333828913,1722535840555,-343.06753613,0.00012997,2]
[333828915,1722535840567,-503.284904,0.00012997,2]
[333828917,1722535840581,-1273.04144729,0.00012997,2]
[333828919,1722535840594,-500.54133244,0.00012997,2]
[333828921,1722535840625,-1846.64551871,0.00012997,2]
[333828934,1722535840764,-628.0054999,0.00011525,2]
[333828936,1722535840774,-646.95434377,0.00012997,2]
[333828938,1722535840785,-1414.99992,0.00012997,2]
[333828940,1722535840798,-2123.93814826,0.00012997,2]
[333828958,1722535840995,-3518.3198757,0.00012997,2]
[333828960,1722535841007,-282.48007,0.00012997,2]
[333828962,1722535841019,-630.21,0.00012997,2]
[333828973,1722535841164,-288.03280192,0.00011186,2]
[333828975,1722535841176,-1263.57,0.00011186,2]
[333828976,1722535841195,-1527.45257965,0.00011186,2]
[333828977,1722535841206,-298.34472477,0.00011324,2]
[333828978,1722535841216,-357.09487431,0.00011896,2]
[333828979,1722535841226,-58941.4735767,0.00012997,2]
[333828980,1722535841238,-67537.99997854,0.00012997,2]
[333828981,1722535841248,-500.0,0.00012999,2]
[333828982,1722535841258,-500.0,0.00012999,2]
[333828983,1722535841268,-200.0,0.00012999,2]
[333828984,1722535841277,-500.0,0.00012999,2]
[333828985,1722535841287,-407.06972787,0.00012999,2]
[333828986,1722535841297,-500.0,0.00012999,2]
[333828987,1722535841307,-500.0,0.00012999,2]
[333828988,1722535841317,-500.0,0.00012999,2]
[333828989,1722535841326,-500.0,0.00012999,2]
[333828991,1722535841336,-500.0,0.00012999,2]
[333828992,1722535841346,-500.0,0.00012999,2]
[333828994,1722535841356,-500.0,0.00012999,2]
[333828996,1722535841366,-500.0,0.00012999,2]
[333828998,1722535841376,-500.0,0.00012999,2]
[333829000,1722535841386,-500.0,0.00012999,2]
[333829002,1722535841396,-500.0,0.00012999,2]
[333829004,1722535841405,-500.0,0.00012999,2]
[333829006,1722535841416,-500.0,0.00012999,2]
[333829008,1722535841426,-300.0,0.00012999,2]
[333829010,1722535841435,-526.4607215,0.00012999,2]
[333829012,1722535841445,-500.0,0.00012999,2]
[333829014,1722535841455,-500.0,0.00012999,2]
[333829016,1722535841465,-500.0,0.00012999,2]
[333829018,1722535841475,-500.0,0.00012999,2]
[333829020,1722535841487,-500.0,0.00012999,2]
[333829022,1722535841498,-500.0,0.00012999,2]
[333829024,1722535841508,-500.0,0.00012999,2]
[333829026,1722535841519,-500.0,0.00012999,2]
[333829028,1722535841534,-500.0,0.00012999,2]
[333829030,1722535841544,-500.0,0.00012999,2]
[333829032,1722535841554,-248918.77100263,0.00013,2]
[333829034,1722535841568,-6346.560807,0.00013,2]
[333829036,1722535841581,-512.0317385,0.00013,2]
[333829038,1722535841593,-7109.92850735,0.00013,2]
[333829040,1722535841607,-23999.99999714,0.00013,2]
[333829167,1722535842871,-2143.78276528,0.00011206,2]
[333829169,1722535842882,-600.14164396,0.00011525,2]
[333829171,1722535842892,-4546.52638764,0.00013,2]
[333829173,1722535842904,-2447.60779868,0.00013,2]
[333829176,1722535842916,-673.01227489,0.00013,2]
[333829179,1722535842928,-2045.06544614,0.00013,2]
[333829182,1722535842940,-4693.64068112,0.00013,2]
[333829185,1722535843081,-572.21162,0.00013,2]
[333829186,1722535843395,-571.571,0.00013,2]
[333829187,1722535843407,-6644.55524363,0.00013,2]
[333829188,1722535843419,-463.3999995,0.00013,2]
[333829189,1722535843431,-338.12705885,0.00013,2]
[333829190,1722535843442,-311.7686698,0.00013,2]
[333829191,1722535843454,-6802.53090105,0.00013,2]
[333829192,1722535843466,-1439.5369503,0.00013,2]
[333829193,1722535843478,-5995.98921356,0.00013,2]
[333829194,1722535843495,-1005.26097745,0.00013,2]
[333829195,1722535843517,-165.34169392,0.0001185,2]
[333829196,1722535843527,-163.04831608,0.00013,2]
[333829198,1722535843540,-444.24779552,0.00013,2]
[333829207,1722535843647,1106.58093347,9.493e-05,2]
[333829324,1722535847390,-722.68329662,0.00011525,2]
[333829325,1722535847400,-210.80539627,0.00011959,2]
[333829326,1722535847410,-500.0,0.00012732,2]
[333829327,1722535847420,-1845.51130711,0.00013,2]
[333829328,1722535847432,-1193.11257539,0.00013,2]
[333829329,1722535847443,-949.12026359,0.00013,2]
[333829330,1722535847455,-4148.08319529,0.00013,2]
[333829331,1722535847467,-299.34121991,0.00013,2]
[333829332,1722535847517,-2348.53293678,0.00013,2]
[333829333,1722535847532,-1982.77570354,0.00013,2]
[333829334,1722535847546,-3502.87075044,0.00013,2]
[333829335,1722535847588,-446.64809353,0.00013,2]
[333829337,1722535847600,-397.02785347,0.00013,2]
[333829339,1722535847612,-2293.49586777,0.00013,2]
[333829768,1722535935390,150.9,0.0001337,30]
[333829769,1722535937676,435.23976542,9.841e-05,2]
[333829771,1722536009541,150.0,0.00015,15]
[333829778,1722536250083,-369.29023458,9.841e-05,2]
[333829779,1722536250107,-7595.64298744,0.00010196,2]
[333829780,1722536250130,-1664.160593,0.00010296,2]
[333829781,1722536250154,-370.90618498,0.000105,2]
[333829782,1722536251444,-1607.44051502,0.000105,2]
[333829783,1722536251468,-150.0,0.00010599,2]
[333829784,1722536251492,-300.0,0.00010599,2]
[333829785,1722536251515,-7942.55948498,0.000106,2]
[333829786,1722536252501,-10000.0,0.000106,2]
[333829788,1722536260395,-10000.0,0.000106,2]
[333829789,1722536260933,-10000.0,0.000106,2]
[333829790,1722536262566,150.0,0.00015,15]
[333829792,1722536284254,-300.0,0.00010599,2]
[333829793,1722536284276,-9700.0,0.000106,2]
[333829794,1722536284416,-150.0,0.00010599,2]
[333829795,1722536284442,-9850.0,0.000106,2]
[333829796,1722536285325,-149.75041502,0.000106,2]
[333829797,1722536285350,-5128.5672,0.000106,2]
[333829798,1722536285374,-4721.68238498,0.000106,2]
[333829799,1722536286508,-9276.22571502,0.000106,2]
[333829800,1722536286532,-299.71268725,0.000106,2]
[333829801,1722536286564,-227.57356757,0.000106,2]
[333829802,1722536286588,-196.48803016,0.000106,2]
[333829803,1722536310225,-216.2782701,0.000106,2]
[333829804,1722536310248,-425.56217622,0.000106,2]
[333829805,1722536310270,-181.66385154,0.000106,2]
[333829806,1722536310292,-1049.72746869,0.000106,2]
[333829807,1722536310317,-291.36870266,0.000106,2]
[333829808,1722536310342,-449.14284782,0.000106,2]
[333829809,1722536310364,-7386.25668297,0.000106,2]
[333829810,1722536310970,-1876.91189637,0.000106,2]
[333829811,1722536310993,-155.0,0.000106,2]
[333829812,1722536311016,-340.68338463,0.000106,4]
[333829813,1722536311039,-411.60345226,0.000106,2]
[333829814,1722536311061,-155.0,0.000106,2]
[333829815,1722536311090,-305.44142731,0.000106,2]
[333829816,1722536311112,-170.34699346,0.000106,2]
[333829817,1722536311133,-6585.01284597,0.00010939,2]
[333829818,1722536311928,-396.14715403,0.00010939,2]
[333829819,1722536311952,-193.51,0.00010954,2]
[333829820,1722536311976,-334.3,0.0001096,2]
[333829821,1722536311999,-1680.59,0.00010969,2]
[333829822,1722536312021,-7395.45284597,0.0001097,2]
[333829824,1722536354799,-300.0,0.00010599,2]
[333829825,1722536354822,-871.50003279,0.000106,2]
[333829826,1722536354854,-8828.49996721,0.000106,2]
[333829832,1722536455680,788.58,8.617e-05,2]
[333829833,1722536478883,18824.96530891,8.617e-05,2]
[333829834,1722536482388,20375.34613072,8.617e-05,2]
[333829835,1722536483165,383.10378803,8.617e-05,2]
[333829836,1722536483802,245.94394557,8.617e-05,2]
[333829837,1722536491439,1222.70109988,8.617e-05,2]
[333829839,1722536500351,238.83287979,8.617e-05,2]
[333829840,1722536500411,1267.89314635,8.617e-05,2]
[333829841,1722536501578,227.57356757,8.617e-05,2]
[333829842,1722536503014,1632.97969896,8.617e-05,2]
[333829843,1722536507785,150.9,0.0001337,30]
[333829844,1722536513766,152.96860205,0.00015,15]
[333829845,1722536637406,-260.36,9.816e-05,2]
[333829846,1722536637428,-1739.64,9.877e-05,2]
[333829847,1722536653227,175.95,8.075e-05,2]
[333829848,1722536705076,50059.71522553,8.075e-05,2]
[333829849,1722536711132,1267.89314635,8.075e-05,2]
[333829850,1722536713620,227.57356757,8.075e-05,2]
[333829851,1722536716513,3777.1788443,8.075e-05,2]
[333829852,1722536726326,743.68408206,8.075e-05,2]
[333829857,1722536790019,1632.97969896,8.075e-05,2]
[333829858,1722536794590,227.57356757,8.075e-05,2]
[333829859,1722536794683,972.17558586,8.075e-05,2]
[333829860,1722536796733,1205.5094601,0.00027,120]
[333829869,1722536859419,1091.2038205,0.00027,120]
[333829871,1722536923737,749.15,8.219e-05,2]
[333829901,1722536993039,1627.49825669,8.219e-05,2]
[333829906,1722536996831,150.9,0.0001337,30]
[333829907,1722537003103,150.0,8.219e-05,2]
[333829908,1722537003302,150.0,8.219e-05,2]
[333829909,1722537003556,150.36666751,8.219e-05,2]
[333829911,1722537021111,227.57356757,8.219e-05,2]
[333829912,1722537023034,1627.49825669,8.219e-05,2]
[333829945,1722537032378,-1459.01453007,9.553e-05,2]
[333829948,1722537032395,-118.32546993,9.553e-05,2]
[333829950,1722537032404,-500.0,9.559e-05,2]
[333829952,1722537032414,-2604.54,9.559e-05,2]
[333829953,1722537032425,-167.15,9.586e-05,2]
[333829954,1722537032435,-346.28,9.667e-05,2]
[333829955,1722537032444,-627.99,9.675e-05,2]
[333829956,1722537032454,-260.36,9.877e-05,2]
[333829957,1722537032464,-300.0,9.961e-05,2]
[333829958,1722537032474,-947.72324924,9.962e-05,2]
[333829959,1722537032484,-1858.0375165,0.0001,2]
[333829960,1722537032493,-4280.87781785,0.0001,2]
[333829961,1722537032503,-23900.0,0.00010093,2]
[333829962,1722537032513,-168.55,0.00010096,2]
[333829963,1722537032523,-600.0,0.000101,3]
[333829964,1722537032533,-2371.19,0.00010114,2]
[333829965,1722537032543,-1300.0,0.000102,3]
[333829966,1722537032553,-250.0,0.0001024,2]
[333829967,1722537032562,-721.23,0.00010254,2]
[333829968,1722537032572,-1900.0,0.000103,3]
[333829969,1722537032581,-150.0,0.00010399,2]
[333829970,1722537032591,-2600.0,0.000104,3]
[333829971,1722537032600,-263.56762795,0.00010445,2]
[333829972,1722537032610,-795.41392558,0.00010445,2]
[333829973,1722537032620,-5966.39263641,0.00010445,2]
[333829974,1722537032629,-749.15,0.00010452,2]
[333829975,1722537032639,-156.16074066,0.000105,2]
[333829976,1722537032648,-3300.0,0.000105,3]
[333829977,1722537032658,-304.84,0.00010517,2]
[333829978,1722537032667,-1153.87,0.00010517,2]
[333829979,1722537032677,-1153.87,0.0001052,2]
[333829980,1722537032687,-1153.87,0.00010523,2]
[333829981,1722537032697,-1153.87,0.00010525,2]
[333829982,1722537032706,-1153.87,0.00010528,2]
[333829983,1722537032715,-1153.87,0.00010531,2]
[333829984,1722537032725,-1153.87,0.00010534,2]
[333829985,1722537032734,-1153.87,0.00010537,2]
[333829986,1722537032744,-1153.87,0.00010539,2]
[333829987,1722537032753,-1153.87,0.00010542,2]
[333829988,1722537032762,-1153.87,0.00010545,2]
[333829989,1722537032772,-156.1607406,0.00010546,2]
[333829990,1722537032783,-1153.87,0.00010548,2]
[333829991,1722537032792,-1153.87,0.0001055,2]
[333829992,1722537032803,-1153.87,0.00010553,2]
[333829993,1722537032814,-1153.87,0.00010556,2]
[333829994,1722537032824,-1153.87,0.00010559,2]
[333829995,1722537032833,-1153.87,0.00010561,2]
[333829996,1722537032844,-1153.87,0.00010564,2]
[333829997,1722537032855,-1153.87,0.00010567,2]
[333829998,1722537032866,-1153.87,0.0001057,2]
[333829999,1722537032876,-156.1607406,0.00010592,2]
[333830000,1722537032888,-600.0,0.000106,3]
[333830001,1722537032898,-156.1607406,0.00010638,2]
[333830002,1722537032908,-156.1607406,0.00010684,2]
[333830003,1722537032918,-600.0,0.000107,3]
[333830004,1722537032927,-156.1607406,0.0001073,2]
[333830005,1722537032937,-156.1607406,0.00010775,2]
[333830006,1722537032948,-600.0,0.000108,3]
[333830007,1722537032958,-156.1607406,0.00010821,2]
[333830008,1722537032967,-231.94,0.00010865,2]
[333830009,1722537032977,-156.1607406,0.00010867,2]
[333830010,1722537032987,-202147.75759338,0.0001088,2]
[333830011,1722537032997,-171.2,0.00010883,2]
[333830012,1722537033008,-2500.0,0.0001089,2]
[333830013,1722537033022,-18757.6091718,0.00010899,2]
[333830014,1722537033033,-18757.60917172,0.00010899,2]
[333830015,1722537033043,-10045.0398738,0.00010899,2]
[333830016,1722537036116,227.57356757,8.219e-05,2]
[333830027,1722537038286,-947.72324924,9.962e-05,2]
[333830028,1722537038298,-4488.17256796,0.00010899,2]
[333830029,1722537038310,-4224.39672996,0.00010899,2]
[333830030,1722537038320,-2589.62755156,0.00010899,2]
[333830031,1722537038333,-576.90968791,0.00010899,2]
[333830032,1722537038344,-3169.10639222,0.00010899,2]
[333830033,1722537038356,-1518.81317198,0.00010899,2]
[333830034,1722537038368,-2412.42714,0.00010899,2]
[333830035,1722537038379,-449.91377243,0.00010899,2]
[333830037,1722537038391,-1400.0,0.00010899,2]
[333830038,1722537038404,-782.42871167,0.00010899,2]
[333830040,1722537038415,-783.45476951,0.00010899,2]
[333830042,1722537038427,-5074.92797444,0.00010899,2]
[333830044,1722537038437,-6325.07202556,0.00010899,2]
[333830047,1722537038448,-278.1724,0.00010899,2]
[333830049,1722537038459,-3444.51359154,0.00010899,2]
[333830051,1722537038471,-8709.85115462,0.00010899,2]
[333830053,1722537038481,-6235.30529209,0.00010899,2]
[333830055,1722537038493,-2063.9565768,0.00010899,2]
[333830057,1722537038506,-1980.90892194,0.00010899,2]
[333830060,1722537038518,-426.46526203,0.00010899,2]
[333830062,1722537038531,-1203.88782761,0.00010899,2]
[333830064,1722537038543,-1447.37345171,0.00010899,2]
[333830066,1722537038555,-605.61078592,0.00010899,2]
[333830069,1722537038567,-4794.10105362,0.00010899,2]
[333830071,1722537038577,-18757.60917172,0.00010899,2]
[333830073,1722537038586,-2803.44326431,0.00010899,2]
[333830145,1722537039956,-439.06827938,0.00010899,2]
[333830147,1722537039969,-1268.0868916,0.00010899,2]
[333830148,1722537039981,-6813.11182534,0.00010899,2]
[333830150,1722537040031,-807.73443717,0.00010899,2]
[333830151,1722537040044,-1547.0,0.00010899,2]
[333830152,1722537040111,-1503.37964202,0.00010899,2]
[333830153,1722537040122,-347.50656736,0.00010899,2]
[333830154,1722537040134,-579.8014894,0.00010899,2]
[333830155,1722537040146,-2648.47677514,0.00010899,2]
[333830156,1722537040156,-18757.60917172,0.00010899,2]
[333830157,1722537040167,-1234.9867706,0.00010899,2]
[333830158,1722537040177,-1234.98677059,0.00010899,2]
[333830159,1722537040187,-1234.98677059,0.00010899,2]
[333830160,1722537040196,-1234.98677059,0.00010899,2]
[333830161,1722537040206,-1234.98677059,0.00010899,2]
[333830162,1722537040216,-1234.98677059,0.00010899,2]
[333830163,1722537040226,-1234.98677059,0.00010899,2]
[333830164,1722537040235,-1234.98677059,0.00010899,2]
[333830165,1722537040245,-1234.98677059,0.00010899,2]
[333830166,1722537040255,-600.0,0.000109,3]
[333830167,1722537040264,-12371.24545355,0.000109,2]
[333830168,1722537040276,-6386.36371817,0.000109,2]
[333830169,1722537040286,-1234.98677059,0.000109,2]
[333830170,1722537040296,-318.57841228,0.000109,2]
[333830171,1722537040306,-156.1607406,0.00010913,2]
[333830172,1722537040315,-420.0,0.00010957,2]
[333830173,1722537040325,-250.0,0.00010959,2]
[333830174,1722537040334,-156.1607406,0.00010959,2]
[333830175,1722537040344,-200.0,0.00010973,2]
[333830176,1722537040354,-200.0,0.00010973,2]
[333830177,1722537040364,-231.45,0.0001099,2]
[333830178,1722537040373,-150.99,0.0001099,2]
[333830179,1722537040383,-385991.78776513,0.0001099,3]
[333830184,1722537040416,-329.61136878,0.0001099,3]
[333830186,1722537040428,-16493.36121731,0.0001099,3]
[333830353,1722537043267,-62518.08933893,0.0001099,3]
[333830355,1722537043278,-20348.04022692,0.0001099,3]
[333830357,1722537043290,-305.09168065,0.0001099,3]
[333830359,1722537043302,-5223.47653652,0.0001099,3]
[333830361,1722537043314,-4161.52101947,0.0001099,3]
[333830363,1722537043324,-10534.7544,0.0001099,3]
[333830365,1722537043335,-24569.28956394,0.0001099,3]
[333830372,1722537044012,-623.2797952,0.0001099,3]
[333830373,1722537044023,-655.16092701,0.0001099,3]
[333830677,1722537048605,-211878.91013429,0.0001099,3]
[333830679,1722537048615,-954.42018108,0.00010999,2]
[333830681,1722537048624,-422.82047804,0.00010999,2]
[333830683,1722537048643,-523.00774754,0.00010999,2]
[333830685,1722537048655,-500.0,0.00010999,2]
[333830687,1722537048664,-580.71785795,0.00010999,2]
[333830689,1722537048674,-23574947.21807894,0.00011,2]
[333830691,1722537048685,-250.0,0.00011,2]
[333830693,1722537048694,-9393171.05551932,0.00011,2]
[333830695,1722537048704,-292.630648,0.00011,2]
[333830697,1722537048713,-151.0,0.00011,2]
[333830699,1722537048723,-159.749043,0.00011,2]
[333830701,1722537048733,-156.1607406,0.00011005,2]
[333830703,1722537048743,-735.67,0.00011027,2]
[333830705,1722537048752,-499.99,0.00011027,2]
[333830707,1722537048762,-200.0,0.00011046,2]
[333830709,1722537048771,-1000.0,0.00011073,2]
[333830711,1722537048782,-243.00643023,0.00011105,2]
[333830713,1722537048791,-2727.16525437,0.00011105,2]
[333830715,1722537048801,-719.24573666,0.00011105,2]
[333830717,1722537048811,-4472.47771748,0.00011105,2]
[333830719,1722537048820,-270.28818504,0.00011105,2]
[333830721,1722537048830,-1926.73701932,0.00011105,2]
[333830723,1722537048839,-7269.27662273,0.00011105,2]
[333830725,1722537048848,-1500.0,0.00011105,2]
[333830727,1722537048858,-5000.0,0.00011105,2]
[333830729,1722537048868,-155.0,0.00011105,2]
[333830731,1722537048880,-1073.58046777,0.00011105,2]
[333830733,1722537048890,-5321.7841887,0.00011105,2]
[333830735,1722537048900,-652.98954069,0.00011105,2]
[333830737,1722537048909,-283.44118139,0.00011105,2]
[333830739,1722537048920,-1183.81771126,0.00011105,2]
[333830741,1722537048930,-203.20879356,0.00011105,2]
[333830743,1722537048940,-3975.93139247,0.00011105,2]
[333830745,1722537048951,-159.44788772,0.00011105,2]
[333830747,1722537048961,-155.0,0.00011105,2]
[333830749,1722537048970,-196.88506845,0.00011105,2]
[333830751,1722537048980,-1137.94693277,0.00011105,2]
[333830753,1722537048989,-155.0,0.00011105,2]
[333830754,1722537048998,-314.47986253,0.00011105,2]
[333830756,1722537049008,-3400.91875942,0.00011105,2]
[333830758,1722537049018,-1175.68290634,0.00011105,2]
[333830760,1722537049027,-367.51291896,0.00011105,2]
[333830763,1722537049037,-484.69898026,0.00011105,2]
[333830765,1722537049047,-476.4573429,0.00011105,2]
[333830767,1722537049057,-379.95855132,0.00011105,2]
[333830769,1722537049067,-206.56189729,0.00011105,2]
[333830771,1722537049077,-164.23596765,0.00011105,2]
[333830773,1722537049087,-265.17493776,0.00011105,2]
[333830775,1722537049097,-155.0,0.00011105,2]
[333830777,1722537049107,-155.0,0.00011105,2]
[333830778,1722537049116,-177.39876551,0.00011105,2]
[333830781,1722537049126,-205.72998009,0.00011105,2]
[333830782,1722537049144,-262.2359978,0.00011105,2]
[333830784,1722537049154,-158.84273734,0.00011105,2]
[333830786,1722537049168,-264.23719677,0.00011105,2]
[333830787,1722537049178,-155.0,0.00011105,2]
[333830789,1722537049188,-1112.24767944,0.00011105,2]
[333830791,1722537049197,-649.20351135,0.00011105,2]
[333830793,1722537049207,-155.0,0.00011105,2]
[333830794,1722537049217,-519.62430261,0.00011105,2]
[333830796,1722537049226,-202.68830391,0.00011105,2]
[333830798,1722537049236,-160.79742299,0.00011105,2]
[333830800,1722537049246,-155.0,0.00011105,2]
[333830801,1722537049256,-1018.29565993,0.00011105,2]
[333830803,1722537049265,-1048.46339646,0.00011105,2]
[333830805,1722537049275,-35692.14335282,0.00011186,2]
[333830806,1722537049284,-1256.27829447,0.00011322,2]
[333830807,1722537049293,-526.08215279,0.00011324,2]
[333830808,1722537049303,-168.55,0.00011358,2]
[333830809,1722537049317,-8481.70743359,0.00011592,2]
[333830810,1722537049327,-181.12,0.00011681,2]
[333830811,1722537049336,-181.12,0.00011684,2]
[333830812,1722537049346,-181.12,0.00011687,2]
[333830813,1722537049355,-181.12,0.0001169,2]
[333830814,1722537049365,-181.12,0.00011693,2]
[333830815,1722537049754,-181.12,0.00011696,2]
[333830816,1722537049764,-181.12,0.00011699,2]
[333830817,1722537049774,-181.12,0.00011703,2]
[333830818,1722537049784,-181.12,0.00011706,2]
[333830819,1722537049793,-181.12,0.00011709,2]
[333830820,1722537049803,-181.12,0.00011712,2]
[333830821,1722537049813,-181.12,0.00011715,2]
[333830822,1722537049822,-181.12,0.00011718,2]
[333830823,1722537049832,-181.12,0.00011721,2]
[333830824,1722537049842,-181.12,0.00011724,2]
[333830825,1722537049851,-181.12,0.00011727,2]
[333830826,1722537049862,-181.12,0.0001173,2]
[333830827,1722537049874,-181.12,0.00011733,2]
[333830828,1722537049889,-181.12,0.00011736,2]
[333830829,1722537049899,-181.12,0.00011739,2]
[333830830,1722537049910,-1711.44228384,0.00011896,2]
[333830831,1722537049920,-2838.43536075,0.00011896,2]
[333830832,1722537049930,-2513.68707718,0.00011905,2]
[333830833,1722537049940,-169.66,0.00012044,2]
[333830834,1722537049956,-587.0,0.00012053,2]
[333830835,1722537049966,-1107.15,0.00012087,2]
[333830836,1722537049975,-16895.73,0.00012087,2]
[333830837,1722537049986,-150.0,0.0001211,2]
[333830838,1722537049997,-495.686,0.0001211,2]
[333830839,1722537050007,-175.95,0.00012112,2]
[333830840,1722537050018,-400.0,0.00012342,2]
[333830841,1722537050029,-400.0,0.00012342,2]
[333830842,1722537050041,-1725.0,0.0001236,2]
[333830843,1722537050051,-231.45,0.00012364,2]
[333830844,1722537050061,-229.2572126,0.00012391,2]
[333830845,1722537050071,-531.73631271,0.00012391,2]
[333830846,1722537050080,-150.0,0.00012416,2]
[333830847,1722537050091,-356.08,0.00012416,2]
[333830848,1722537050100,-1000.0,0.00012457,2]
[333830849,1722537050112,-186.54309223,0.0001246,2]
[333830850,1722537050122,-150.0,0.00012588,2]
[333830851,1722537050133,-550.0,0.00012588,2]
[333830852,1722537050147,-1995.0,0.00012588,2]
[333830853,1722537050156,-1401.701,0.00012588,2]
[333830854,1722537050165,-1254.0,0.00012588,2]
[333830855,1722537050175,-621.0,0.00012588,2]
[333830856,1722537050184,-1662.0,0.00012588,2]
[333830857,1722537050194,-1829.0,0.00012588,2]
[333830858,1722537050204,-168.55,0.0001262,2]
[333830859,1722537050214,-130087.38324729,0.00012681,2]
[333830860,1722537050225,-749.15,0.00012685,2]
[333830861,1722537050235,-400.85725149,0.00012696,2]
[333830862,1722537050245,-500.0,0.00012697,2]
[333830863,1722537050255,-1000.0,0.000127,2]
[333830864,1722537050265,-500.0,0.00012705,2]
[333830865,1722537050275,-500.0,0.00012714,2]
[333830866,1722537050285,-500.0,0.00012723,2]
[333830867,1722537050295,-155.0,0.00012749,2]
[333830868,1722537050304,-411.33551761,0.00012757,2]
[333830869,1722537050314,-387.79038477,0.00012791,2]
[333830870,1722537050324,-1000.0,0.000128,2]
[333830871,1722537050333,-400.0,0.00012826,2]
[333830872,1722537050343,-500.0,0.00012856,2]
[333830873,1722537050352,-500.0,0.00012865,2]
[333830874,1722537050362,-3000.0,0.0001287,2]
[333830875,1722537050372,-500.0,0.00012874,2]
[333830876,1722537050382,-500.0,0.00012882,2]
[333830877,1722537050398,-500.0,0.00012891,2]
[333830878,1722537050419,-500.0,0.00012896,2]
[333830879,1722537050429,-200.0,0.00012896,2]
[333830880,1722537050439,-2721.6953,0.000129,2]
[333830881,1722537050450,-170.81662989,0.000129,2]
[333830882,1722537050460,-500.0,0.000129,2]
[333830883,1722537050470,-1111.0,0.000129,4]
[333830884,1722537050481,-308.97616233,0.00012924,2]
[333830885,1722537050491,-200.0,0.00012973,2]
[333830886,1722537050500,-793.0,0.00013,2]